[Event "*** Titled Tuesday Blitz"]
[Site "Chess.com"]
[Date "2021.03.09"]
[Round "7"]
[White "enriquetejedor"]
[Black "GM_Crest"]
[Result "1-0"]
[WhiteElo "2556"]
[BlackElo "2751"]
[TimeControl "180+1"]
[EndTime "11:23:20 PST"]
[Termination "enriquetejedor won on time"]

1. e4 {[%clk 0:02:38.3]} 1... c5 {[%clk 0:02:39.4]} 2. Nf3 {[%clk 0:02:35.4]}
2... d6 {[%clk 0:02:39.5]} 3. d4 {[%clk 0:02:36]} 3... Nf6 {[%clk 0:02:39.8]} 4.
Nc3 {[%clk 0:02:35.7]} 4... cxd4 {[%clk 0:02:39.8]} 5. Nxd4 {[%clk 0:02:36.6]}
5... a6 {[%clk 0:02:38.6]} 6. Nb3 {[%clk 0:02:34.5]} 6... e6 {[%clk 0:02:35.7]}
7. g4 {[%clk 0:02:32.8]} 7... b5 {[%clk 0:02:36]} 8. g5 {[%clk 0:02:31]} 8...
Nfd7 {[%clk 0:02:36]} 9. Bg2 {[%clk 0:02:23]} 9... Bb7 {[%clk 0:02:35.6]} 10.
O-O {[%clk 0:02:21.3]} 10... Nb6 {[%clk 0:02:32.1]} 11. Na5 {[%clk 0:02:19.8]}
11... Qc7 {[%clk 0:02:13.5]} 12. Bf4 {[%clk 0:01:57.4]} 12... Nc6 {[%clk
0:01:42]} 13. Nxb7 {[%clk 0:01:46.7]} 13... Qxb7 {[%clk 0:01:42.1]} 14. Bxd6
{[%clk 0:01:46.4]} 14... Rd8 {[%clk 0:01:26.1]} 15. e5 {[%clk 0:01:45.5]} 15...
Nc4 {[%clk 0:01:26.6]} 16. Qf3 {[%clk 0:01:41.9]} 16... Rc8 {[%clk 0:01:10.3]}
17. Bxf8 {[%clk 0:00:40.3]} 17... Rxf8 {[%clk 0:01:09.8]} 18. Qh3 {[%clk
0:00:35.2]} 18... Qc7 {[%clk 0:01:05.8]} 19. f4 {[%clk 0:00:31.4]} 19... g6
{[%clk 0:00:59.2]} 20. Ne4 {[%clk 0:00:29.2]} 20... Ke7 {[%clk 0:00:54.4]} 21.
b3 {[%clk 0:00:28.4]} 21... Qb6+ {[%clk 0:00:52.1]} 22. Rf2 {[%clk 0:00:27.2]}
22... Ne3 {[%clk 0:00:52.1]} 23. Nd6 {[%clk 0:00:21.5]} 23... Rcd8 {[%clk
0:00:50.4]} 24. Re1 {[%clk 0:00:20.5]} 24... Nxg2 {[%clk 0:00:49.5]} 25. Kxg2
{[%clk 0:00:20.6]} 25... Nb4 {[%clk 0:00:45.4]} 26. c4 {[%clk 0:00:18.3]} 26...
bxc4 {[%clk 0:00:45.1]} 27. bxc4 {[%clk 0:00:16.5]} 27... Qc6+ {[%clk
0:00:45.2]} 28. Qf3 {[%clk 0:00:09.5]} 28... Qxf3+ {[%clk 0:00:42.3]} 29. Rxf3
{[%clk 0:00:10.4]} 29... Rd7 {[%clk 0:00:40.5]} 30. Rb1 {[%clk 0:00:06.4]} 30...
Nc2 {[%clk 0:00:36]} 31. Rc3 {[%clk 0:00:04.3]} 31... Nd4 {[%clk 0:00:35.2]} 32.
c5 {[%clk 0:00:04.2]} 32... Rc7 {[%clk 0:00:34.6]} 33. Rc4 {[%clk 0:00:02.8]}
33... Nc6 {[%clk 0:00:33.1]} 34. Rb6 {[%clk 0:00:01.7]} 34... Ra8 {[%clk
0:00:33.1]} 35. Rc1 {[%clk 0:00:01.2]} 35... a5 {[%clk 0:00:32.5]} 36. h4 {[%clk
0:00:01.6]} 36... Nb4 {[%clk 0:00:32]} 37. a3 {[%clk 0:00:01.6]} 37... Nd3
{[%clk 0:00:31.2]} 38. Rc3 {[%clk 0:00:01.7]} 38... Nxf4+ {[%clk 0:00:30.8]} 39.
Kh2 {[%clk 0:00:01.4]} 39... Nd5 {[%clk 0:00:31.7]} 40. Rf3 {[%clk 0:00:01.6]}
40... Kf8 {[%clk 0:00:30.3]} 41. Rb5 {[%clk 0:00:01.4]} 41... a4 {[%clk
0:00:30.4]} 42. Rf2 {[%clk 0:00:01.1]} 42... Kg8 {[%clk 0:00:27.8]} 43. Kg2
{[%clk 0:00:01.5]} 43... Nc3 {[%clk 0:00:27.3]} 44. Rbb2 {[%clk 0:00:01.6]}
44... Nd1 {[%clk 0:00:26.8]} 45. Rbc2 {[%clk 0:00:01.5]} 45... Nxf2 {[%clk
0:00:25.8]} 46. Kxf2 {[%clk 0:00:02.4]} 46... Ra5 {[%clk 0:00:25.7]} 47. Ne4
{[%clk 0:00:02.7]} 47... Kf8 {[%clk 0:00:24.6]} 48. Ke2 {[%clk 0:00:02.3]} 48...
Ke7 {[%clk 0:00:23.8]} 49. Kd3 {[%clk 0:00:02.5]} 49... Kd7 {[%clk 0:00:23.9]}
50. Kc4 {[%clk 0:00:02.7]} 50... Kc6 {[%clk 0:00:24]} 51. Rd2 {[%clk 0:00:02.2]}
51... Rd7 {[%clk 0:00:24.3]} 52. Rb2 {[%clk 0:00:02.4]} 52... Ra6 {[%clk
0:00:23.7]} 53. Nd6 {[%clk 0:00:02.7]} 53... Rc7 {[%clk 0:00:21.7]} 54. Rb5
{[%clk 0:00:02.3]} 54... Kd7 {[%clk 0:00:19.3]} 55. Rb8 {[%clk 0:00:01.6]} 55...
Ra5 {[%clk 0:00:18.5]} 56. Ne4 {[%clk 0:00:01.7]} 56... Ke7 {[%clk 0:00:16.6]}
57. Rh8 {[%clk 0:00:01.6]} 57... Raa7 {[%clk 0:00:15.7]} 58. Rxh7 {[%clk
0:00:01.9]} 58... Kf8 {[%clk 0:00:15.5]} 59. Rh8+ {[%clk 0:00:01.8]} 59... Kg7
{[%clk 0:00:15.7]} 60. Rb8 {[%clk 0:00:02.7]} 60... Rab7 {[%clk 0:00:15.7]} 61.
Ra8 {[%clk 0:00:02.6]} 61... Ra7 {[%clk 0:00:15.4]} 62. Rb8 {[%clk 0:00:03.1]}
62... Rcb7 {[%clk 0:00:14.8]} 63. Rxb7 {[%clk 0:00:03.4]} 63... Rxb7 {[%clk
0:00:14.8]} 64. c6 {[%clk 0:00:03.9]} 64... Rb6 {[%clk 0:00:13.3]} 65. Kc5
{[%clk 0:00:03.8]} 65... Rb1 {[%clk 0:00:12.9]} 66. c7 {[%clk 0:00:03.6]} 66...
Rc1+ {[%clk 0:00:12.3]} 67. Kb6 {[%clk 0:00:03.8]} 67... Kf8 {[%clk 0:00:12.6]}
68. Nd6 {[%clk 0:00:03.7]} 68... Ke7 {[%clk 0:00:12.5]} 69. c8=Q {[%clk
0:00:03.6]} 69... Rxc8 {[%clk 0:00:11.5]} 70. Nxc8+ {[%clk 0:00:04.5]} 70... Kd7
{[%clk 0:00:11.2]} 71. Nd6 {[%clk 0:00:04.8]} 1-0

[Event "*** Titled Tuesday Blitz"]
[Site "Chess.com"]
[Date "2021.03.09"]
[Round "7"]
[White "Homyakova_Elena"]
[Black "A-S-00"]
[Result "1/2-1/2"]
[WhiteElo "2271"]
[BlackElo "2389"]
[TimeControl "180+1"]
[EndTime "11:23:21 PST"]
[Termination "Game drawn by repetition"]

1. e4 {[%clk 0:03:00.9]} 1... c5 {[%clk 0:02:59.6]} 2. Nf3 {[%clk 0:03:00.7]}
2... Nc6 {[%clk 0:02:59.4]} 3. d4 {[%clk 0:03:01]} 3... cxd4 {[%clk 0:02:59.4]}
4. Nxd4 {[%clk 0:03:01.9]} 4... Nf6 {[%clk 0:03:00.1]} 5. Nc3 {[%clk 0:03:01.7]}
5... e6 {[%clk 0:03:00.4]} 6. Ndb5 {[%clk 0:02:54.5]} 6... Bb4 {[%clk
0:02:59.2]} 7. a3 {[%clk 0:02:48.8]} 7... Bxc3+ {[%clk 0:02:58.7]} 8. Nxc3
{[%clk 0:02:49.7]} 8... d5 {[%clk 0:02:58.4]} 9. exd5 {[%clk 0:02:48.9]} 9...
exd5 {[%clk 0:02:57.9]} 10. Bd3 {[%clk 0:02:46.7]} 10... O-O {[%clk 0:02:56.4]}
11. O-O {[%clk 0:02:46.2]} 11... Bg4 {[%clk 0:02:56.4]} 12. f3 {[%clk
0:02:43.4]} 12... Bh5 {[%clk 0:02:55.7]} 13. Ne2 {[%clk 0:02:35.2]} 13... Ne5
{[%clk 0:02:40.5]} 14. Ng3 {[%clk 0:02:26.3]} 14... Bg6 {[%clk 0:02:36]} 15.
Bxg6 {[%clk 0:02:23.9]} 15... hxg6 {[%clk 0:02:22.8]} 16. Bg5 {[%clk 0:02:13.5]}
16... Qb6+ {[%clk 0:02:22]} 17. Kh1 {[%clk 0:02:13.2]} 17... Rad8 {[%clk
0:02:12]} 18. Re1 {[%clk 0:01:54.9]} 18... Nc4 {[%clk 0:01:35.3]} 19. b3 {[%clk
0:01:53.8]} 19... Nd6 {[%clk 0:01:35.1]} 20. Bxf6 {[%clk 0:01:29.9]} 20... gxf6
{[%clk 0:01:34.8]} 21. Qxd5 {[%clk 0:01:29.6]} 21... Nf5 {[%clk 0:01:31.5]} 22.
Qe4 {[%clk 0:01:10.2]} 22... Nxg3+ {[%clk 0:01:30.7]} 23. hxg3 {[%clk
0:01:11.1]} 23... Rd4 {[%clk 0:01:06.3]} 24. Qe3 {[%clk 0:01:05.8]} 24... Qd6
{[%clk 0:01:01.3]} 25. f4 {[%clk 0:00:45.8]} 25... Kg7 {[%clk 0:00:58.5]} 26.
Kg1 {[%clk 0:00:36.9]} 26... Rd8 {[%clk 0:00:52.3]} 27. Re2 {[%clk 0:00:27.3]}
27... a6 {[%clk 0:00:43.9]} 28. Rae1 {[%clk 0:00:26]} 28... Qxa3 {[%clk
0:00:42.4]} 29. Qe7 {[%clk 0:00:20.4]} 29... Qxe7 {[%clk 0:00:33.8]} 30. Rxe7
{[%clk 0:00:21.3]} 30... R8d7 {[%clk 0:00:34.4]} 31. Rxd7 {[%clk 0:00:18.7]}
31... Rxd7 {[%clk 0:00:35.3]} 32. Re2 {[%clk 0:00:19.4]} 32... Rc7 {[%clk
0:00:33.2]} 33. Kf2 {[%clk 0:00:18.7]} 33... b5 {[%clk 0:00:33.5]} 34. Rd2
{[%clk 0:00:18.3]} 34... f5 {[%clk 0:00:32.4]} 35. Ke2 {[%clk 0:00:18.1]} 35...
Rc6 {[%clk 0:00:29.8]} 36. Kd1 {[%clk 0:00:17.6]} 36... Kf6 {[%clk 0:00:29.5]}
37. Rd7 {[%clk 0:00:17.7]} 37... Ke6 {[%clk 0:00:26.9]} 38. Ra7 {[%clk
0:00:17.6]} 38... Kf6 {[%clk 0:00:20.9]} 39. Kd2 {[%clk 0:00:17.7]} 39... Ke6
{[%clk 0:00:18.8]} 40. Kd3 {[%clk 0:00:17.9]} 40... b4 {[%clk 0:00:15.8]} 41.
Rb7 {[%clk 0:00:16.6]} 41... a5 {[%clk 0:00:15.6]} 42. Rb5 {[%clk 0:00:15.8]}
42... Rc3+ {[%clk 0:00:15.7]} 43. Kd2 {[%clk 0:00:13.3]} 43... Rxg3 {[%clk
0:00:15.4]} 44. Rxa5 {[%clk 0:00:12.1]} 44... Rxg2+ {[%clk 0:00:15.7]} 45. Kd3
{[%clk 0:00:11.6]} 45... Rg3+ {[%clk 0:00:15.8]} 46. Kd2 {[%clk 0:00:08.8]}
46... g5 {[%clk 0:00:13.1]} 47. fxg5 {[%clk 0:00:07.2]} 47... Rxg5 {[%clk
0:00:13.3]} 48. Rb5 {[%clk 0:00:06.4]} 48... Rg4 {[%clk 0:00:13.7]} 49. Ke3
{[%clk 0:00:05.8]} 49... Re4+ {[%clk 0:00:13]} 50. Kf3 {[%clk 0:00:06]} 50...
Kf6 {[%clk 0:00:13.2]} 51. Rb6+ {[%clk 0:00:05.9]} 51... Kg5 {[%clk 0:00:13.4]}
52. Rb7 {[%clk 0:00:06.8]} 52... Kg6 {[%clk 0:00:12.9]} 53. Rb6+ {[%clk
0:00:06.8]} 53... f6 {[%clk 0:00:12.5]} 54. Rb8 {[%clk 0:00:07.3]} 54... Rd4
{[%clk 0:00:10.9]} 55. Rg8+ {[%clk 0:00:06.7]} 55... Kf7 {[%clk 0:00:10.6]} 56.
Rb8 {[%clk 0:00:07.2]} 56... Rh4 {[%clk 0:00:09.8]} 57. Rb5 {[%clk 0:00:05.8]}
57... Rh3+ {[%clk 0:00:07.9]} 58. Kf4 {[%clk 0:00:04.9]} 58... Rc3 {[%clk
0:00:07.5]} 59. Rxb4 {[%clk 0:00:04.6]} 59... Rxc2 {[%clk 0:00:07.1]} 60. Kxf5
{[%clk 0:00:05.2]} 60... Rc5+ {[%clk 0:00:06.6]} 61. Kf4 {[%clk 0:00:05.1]}
61... Kg6 {[%clk 0:00:07.5]} 62. Rb8 {[%clk 0:00:05.1]} 62... Rc3 {[%clk
0:00:06.9]} 63. b4 {[%clk 0:00:05.5]} 63... Rb3 {[%clk 0:00:06.5]} 64. b5 {[%clk
0:00:06]} 64... Rb4+ {[%clk 0:00:06.7]} 65. Kf3 {[%clk 0:00:05.9]} 65... f5
{[%clk 0:00:06.9]} 66. b6 {[%clk 0:00:06.4]} 66... Kg7 {[%clk 0:00:06.4]} 67. b7
{[%clk 0:00:06.7]} 67... f4 {[%clk 0:00:06.3]} 68. Kf2 {[%clk 0:00:06.2]} 68...
Kh7 {[%clk 0:00:06.5]} 69. Kf3 {[%clk 0:00:06.6]} 69... Kg7 {[%clk 0:00:06.1]}
70. Kf2 {[%clk 0:00:07]} 70... Kh7 {[%clk 0:00:06.3]} 71. Kf3 {[%clk 0:00:07.5]}
71... Kg7 {[%clk 0:00:06.6]} 1/2-1/2

[Event "*** Titled Tuesday Blitz"]
[Site "Chess.com"]
[Date "2021.03.09"]
[Round "7"]
[White "marianokar"]
[Black "OlifantCZ"]
[Result "1-0"]
[WhiteElo "2484"]
[BlackElo "2295"]
[TimeControl "180+1"]
[EndTime "11:23:23 PST"]
[Termination "marianokar won on time"]

1. e4 {[%clk 0:03:00.9]} 1... e6 {[%clk 0:02:59.8]} 2. d4 {[%clk 0:02:53]} 2...
d5 {[%clk 0:02:56.9]} 3. Nc3 {[%clk 0:02:53.6]} 3... Bb4 {[%clk 0:02:56]} 4. e5
{[%clk 0:02:52]} 4... c5 {[%clk 0:02:56.2]} 5. Bd2 {[%clk 0:02:52]} 5... Ne7
{[%clk 0:02:50.9]} 6. Nb5 {[%clk 0:02:51.2]} 6... Bxd2+ {[%clk 0:02:49.8]} 7.
Qxd2 {[%clk 0:02:51.3]} 7... O-O {[%clk 0:02:50.4]} 8. Nf3 {[%clk 0:02:45.1]}
8... cxd4 {[%clk 0:02:41.7]} 9. Nbxd4 {[%clk 0:02:44.1]} 9... Nbc6 {[%clk
0:02:42.3]} 10. Bd3 {[%clk 0:02:38.2]} 10... Bd7 {[%clk 0:02:42.5]} 11. O-O-O
{[%clk 0:02:32.1]} 11... Qb6 {[%clk 0:02:38.4]} 12. Kb1 {[%clk 0:02:25.3]} 12...
Nxd4 {[%clk 0:02:28.5]} 13. Nxd4 {[%clk 0:02:23.6]} 13... Nc6 {[%clk 0:02:29]}
14. Nf3 {[%clk 0:02:15.3]} 14... Nb4 {[%clk 0:02:14.1]} 15. h4 {[%clk 0:02:12]}
15... Nxd3 {[%clk 0:02:10.5]} 16. Qxd3 {[%clk 0:01:59.1]} 16... Bb5 {[%clk
0:02:04.2]} 17. Qd4 {[%clk 0:01:55.9]} 17... Qxd4 {[%clk 0:01:58.3]} 18. Nxd4
{[%clk 0:01:55.3]} 18... Bd7 {[%clk 0:01:54.1]} 19. Rhe1 {[%clk 0:01:50]} 19...
Rfc8 {[%clk 0:01:53.9]} 20. f4 {[%clk 0:01:49.4]} 20... Rc5 {[%clk 0:01:47.1]}
21. Re3 {[%clk 0:01:46]} 21... Rac8 {[%clk 0:01:46.1]} 22. Ra3 {[%clk
0:01:41.7]} 22... a6 {[%clk 0:01:45.8]} 23. g3 {[%clk 0:01:38.6]} 23... Kf8
{[%clk 0:01:43]} 24. h5 {[%clk 0:01:30.1]} 24... h6 {[%clk 0:01:40.1]} 25. Rf3
{[%clk 0:01:24.3]} 25... Ke7 {[%clk 0:01:37.4]} 26. Rdf1 {[%clk 0:01:08.6]}
26... Bb5 {[%clk 0:01:31.3]} 27. R1f2 {[%clk 0:01:04.2]} 27... Be8 {[%clk
0:00:54.2]} 28. c3 {[%clk 0:00:52.6]} 28... f5 {[%clk 0:00:47.6]} 29. exf6+
{[%clk 0:00:52.4]} 29... gxf6 {[%clk 0:00:44.6]} 30. Re3 {[%clk 0:00:52.2]}
30... Bf7 {[%clk 0:00:38.9]} 31. Rfe2 {[%clk 0:00:29.3]} 31... R5c6 {[%clk
0:00:33.3]} 32. Nxc6+ {[%clk 0:00:28.6]} 32... Rxc6 {[%clk 0:00:33.4]} 33. g4
{[%clk 0:00:28.7]} 33... Rc4 {[%clk 0:00:29.3]} 34. Rf2 {[%clk 0:00:27.7]} 34...
Bg8 {[%clk 0:00:27.4]} 35. b3 {[%clk 0:00:26.3]} 35... Rc6 {[%clk 0:00:25]} 36.
Kb2 {[%clk 0:00:26.2]} 36... Bh7 {[%clk 0:00:24.5]} 37. Rg2 {[%clk 0:00:23.9]}
37... Be4 {[%clk 0:00:23]} 38. Rgg3 {[%clk 0:00:23.8]} 38... Rc8 {[%clk
0:00:21.5]} 39. g5 {[%clk 0:00:23.5]} 39... hxg5 {[%clk 0:00:21.1]} 40. fxg5
{[%clk 0:00:24.4]} 40... fxg5 {[%clk 0:00:21.4]} 41. Rxg5 {[%clk 0:00:24.3]}
41... Kf6 {[%clk 0:00:20.5]} 42. Rg1 {[%clk 0:00:22.6]} 42... Rh8 {[%clk
0:00:18.4]} 43. Rh3 {[%clk 0:00:22.6]} 43... Bf5 {[%clk 0:00:17.8]} 44. Rh2
{[%clk 0:00:21.9]} 44... Rh6 {[%clk 0:00:17.7]} 45. Kc1 {[%clk 0:00:21.1]} 45...
e5 {[%clk 0:00:17]} 46. Kd2 {[%clk 0:00:21.6]} 46... d4 {[%clk 0:00:16.6]} 47.
cxd4 {[%clk 0:00:21.4]} 47... exd4 {[%clk 0:00:17.1]} 48. Rg8 {[%clk 0:00:20.5]}
48... Ke5 {[%clk 0:00:15.9]} 49. b4 {[%clk 0:00:18.8]} 49... Rc6 {[%clk
0:00:11.3]} 50. Re8+ {[%clk 0:00:14.2]} 50... Kf6 {[%clk 0:00:09.6]} 51. Rf8+
{[%clk 0:00:12.8]} 51... Kg5 {[%clk 0:00:06.8]} 52. Rxf5+ {[%clk 0:00:12.9]}
52... Kxf5 {[%clk 0:00:06.5]} 53. Kd3 {[%clk 0:00:13.1]} 53... Rh6 {[%clk
0:00:04.4]} 54. Kxd4 {[%clk 0:00:12.7]} 54... Ke6 {[%clk 0:00:05.1]} 55. Kc5
{[%clk 0:00:12.6]} 55... Kd7 {[%clk 0:00:05.6]} 56. a4 {[%clk 0:00:12]} 56...
Kc7 {[%clk 0:00:05.9]} 57. a5 {[%clk 0:00:11.8]} 57... Kd7 {[%clk 0:00:05.4]}
58. Rh4 {[%clk 0:00:11.7]} 58... Kc7 {[%clk 0:00:05.6]} 59. Kd5 {[%clk
0:00:12.1]} 59... Kd7 {[%clk 0:00:05.7]} 60. Ke5 {[%clk 0:00:12.5]} 60... Ke7
{[%clk 0:00:05.6]} 61. Kf5 {[%clk 0:00:12.9]} 61... Kf7 {[%clk 0:00:06.1]} 62.
Kg5 {[%clk 0:00:13.3]} 62... Rd6 {[%clk 0:00:05.8]} 63. h6 {[%clk 0:00:13.1]}
63... Kg8 {[%clk 0:00:06.1]} 64. h7+ {[%clk 0:00:13]} 64... Kh8 {[%clk
0:00:06.3]} 65. Kf5 {[%clk 0:00:13.3]} 65... Rd2 {[%clk 0:00:04.1]} 66. Ke6
{[%clk 0:00:12.8]} 66... Rd3 {[%clk 0:00:03.9]} 67. Ke7 {[%clk 0:00:12.5]} 67...
Rd2 {[%clk 0:00:03.9]} 68. Rh6 {[%clk 0:00:11.7]} 68... Rd4 {[%clk 0:00:03.7]}
69. Rb6 {[%clk 0:00:12]} 69... Kxh7 {[%clk 0:00:02.3]} 70. Rxb7 {[%clk
0:00:12.3]} 70... Kg6 {[%clk 0:00:02.4]} 71. Rb6+ {[%clk 0:00:10.6]} 71... Kf5
{[%clk 0:00:02.9]} 72. Ke8 {[%clk 0:00:06.8]} 1-0

[Event "*** Titled Tuesday Blitz"]
[Site "Chess.com"]
[Date "2021.03.09"]
[Round "7"]
[White "ValeriyGrinev"]
[Black "TigrVShlyape"]
[Result "0-1"]
[WhiteElo "2562"]
[BlackElo "2837"]
[TimeControl "180+1"]
[EndTime "11:23:32 PST"]
[Termination "TigrVShlyape won by resignation"]

1. c4 {[%clk 0:03:00.9]} 1... e5 {[%clk 0:02:59.1]} 2. g3 {[%clk 0:02:59.7]}
2... Nc6 {[%clk 0:02:58.7]} 3. Bg2 {[%clk 0:02:58.7]} 3... Bc5 {[%clk
0:02:59.2]} 4. Nc3 {[%clk 0:02:56.3]} 4... a6 {[%clk 0:02:59.3]} 5. e3 {[%clk
0:02:56]} 5... Ba7 {[%clk 0:02:59.2]} 6. Nge2 {[%clk 0:02:56.3]} 6... Nge7
{[%clk 0:02:58.9]} 7. O-O {[%clk 0:02:55.6]} 7... O-O {[%clk 0:02:57.1]} 8. b3
{[%clk 0:02:48.3]} 8... d6 {[%clk 0:02:56]} 9. Bb2 {[%clk 0:02:46.3]} 9... Be6
{[%clk 0:02:52.5]} 10. Nd5 {[%clk 0:02:45.6]} 10... Rb8 {[%clk 0:02:42.6]} 11.
a4 {[%clk 0:02:20.9]} 11... f6 {[%clk 0:02:36.6]} 12. Nec3 {[%clk 0:02:09.2]}
12... Kh8 {[%clk 0:02:33.7]} 13. b4 {[%clk 0:01:37.5]} 13... Bg8 {[%clk
0:02:12.6]} 14. b5 {[%clk 0:01:36.6]} 14... Na5 {[%clk 0:02:10.8]} 15. d3 {[%clk
0:01:33.1]} 15... c6 {[%clk 0:02:08.1]} 16. Nxe7 {[%clk 0:01:28]} 16... Qxe7
{[%clk 0:02:07.5]} 17. bxa6 {[%clk 0:01:26.5]} 17... bxa6 {[%clk 0:02:06.9]} 18.
Ba3 {[%clk 0:01:27.1]} 18... Qc7 {[%clk 0:01:32.7]} 19. Ne4 {[%clk 0:01:22]}
19... Rfd8 {[%clk 0:01:30.6]} 20. Qc2 {[%clk 0:01:13.2]} 20... Rb7 {[%clk
0:01:18.5]} 21. Rab1 {[%clk 0:01:12.4]} 21... d5 {[%clk 0:00:53.5]} 22. Rxb7
{[%clk 0:01:10.1]} 22... Qxb7 {[%clk 0:00:52.4]} 23. Nc5 {[%clk 0:00:59.2]}
23... Bxc5 {[%clk 0:00:50.4]} 24. Bxc5 {[%clk 0:00:58.3]} 24... dxc4 {[%clk
0:00:50.6]} 25. dxc4 {[%clk 0:00:58.4]} 25... Nxc4 {[%clk 0:00:40.4]} 26. Rb1
{[%clk 0:00:48.5]} 26... Qd7 {[%clk 0:00:40.1]} 27. Qc3 {[%clk 0:00:42.1]} 27...
a5 {[%clk 0:00:29.7]} 28. Rc1 {[%clk 0:00:37.6]} 28... Qe6 {[%clk 0:00:23.2]}
29. Bf1 {[%clk 0:00:33.8]} 29... Nd2 {[%clk 0:00:18.5]} 30. Bg2 {[%clk
0:00:34.2]} 30... Nb3 {[%clk 0:00:17]} 31. Rb1 {[%clk 0:00:31.8]} 31... e4
{[%clk 0:00:17.1]} 32. Bb6 {[%clk 0:00:30.3]} 32... Rd3 {[%clk 0:00:16.8]} 33.
Qc2 {[%clk 0:00:27.1]} 33... Qd5 {[%clk 0:00:16.9]} 34. Bd4 {[%clk 0:00:16.2]}
34... Nxd4 {[%clk 0:00:14.8]} 35. exd4 {[%clk 0:00:14.3]} 35... Qxd4 {[%clk
0:00:14.3]} 36. Qxc6 {[%clk 0:00:14]} 36... e3 {[%clk 0:00:14.2]} 37. fxe3
{[%clk 0:00:11.6]} 37... Rxe3 {[%clk 0:00:12.3]} 38. Kh1 {[%clk 0:00:11.5]}
38... Qe5 {[%clk 0:00:11.4]} 39. Qc1 {[%clk 0:00:09.3]} 39... h5 {[%clk
0:00:09.9]} 40. Qf1 {[%clk 0:00:08.3]} 40... h4 {[%clk 0:00:07.1]} 41. gxh4
{[%clk 0:00:08.2]} 41... Bd5 {[%clk 0:00:04]} 42. Bxd5 {[%clk 0:00:07.3]} 42...
Qxd5+ {[%clk 0:00:04.3]} 43. Qg2 {[%clk 0:00:07.8]} 43... Qxg2+ {[%clk
0:00:04.3]} 44. Kxg2 {[%clk 0:00:07.8]} 44... Re4 {[%clk 0:00:04.8]} 45. Rb8+
{[%clk 0:00:07.4]} 45... Kh7 {[%clk 0:00:04.4]} 46. h5 {[%clk 0:00:07.9]} 46...
Rxa4 {[%clk 0:00:04.2]} 47. Rb5 {[%clk 0:00:08.6]} 47... Ra3 {[%clk 0:00:03.7]}
48. h4 {[%clk 0:00:06.5]} 48... Kh6 {[%clk 0:00:03.9]} 49. Kh2 {[%clk
0:00:06.6]} 49... Ra4 {[%clk 0:00:03.5]} 50. Kg3 {[%clk 0:00:06.4]} 50... Ra3+
{[%clk 0:00:03.4]} 51. Kg4 {[%clk 0:00:06.6]} 51... a4 {[%clk 0:00:03]} 52. Rb8
{[%clk 0:00:06.1]} 52... Kh7 {[%clk 0:00:01.9]} 53. Ra8 {[%clk 0:00:06.7]} 53...
Ra2 {[%clk 0:00:02.4]} 54. Kf5 {[%clk 0:00:05.5]} 54... Ra1 {[%clk 0:00:03.3]}
55. Kg4 {[%clk 0:00:05.5]} 55... a3 {[%clk 0:00:03.6]} 56. Kg3 {[%clk
0:00:06.1]} 56... a2 {[%clk 0:00:04]} 57. Kg2 {[%clk 0:00:06.7]} 57... Rc1
{[%clk 0:00:04.4]} 58. Rxa2 {[%clk 0:00:05.6]} 58... Rc5 {[%clk 0:00:05]} 59.
Ra4 {[%clk 0:00:06]} 59... Rxh5 {[%clk 0:00:05.3]} 60. Kg3 {[%clk 0:00:06.4]}
60... Re5 {[%clk 0:00:05.4]} 61. Rb4 {[%clk 0:00:06.9]} 61... Kg6 {[%clk
0:00:05.7]} 62. Rg4+ {[%clk 0:00:06.3]} 62... Kh6 {[%clk 0:00:05.6]} 63. Rb4
{[%clk 0:00:06.8]} 63... Rc5 {[%clk 0:00:05.7]} 64. Rg4 {[%clk 0:00:06.4]} 64...
g6 {[%clk 0:00:05.4]} 65. Rf4 {[%clk 0:00:06.1]} 65... f5 {[%clk 0:00:04.9]} 66.
Kh3 {[%clk 0:00:06.5]} 66... Kh5 {[%clk 0:00:04.6]} 67. Rb4 {[%clk 0:00:05.2]}
67... Rc3+ {[%clk 0:00:04.5]} 68. Kh2 {[%clk 0:00:05.5]} 68... Re3 {[%clk
0:00:05]} 69. Rc4 {[%clk 0:00:05]} 69... Re4 {[%clk 0:00:05.2]} 70. Rc8 {[%clk
0:00:04.7]} 70... Rxh4+ {[%clk 0:00:05.1]} 71. Kg3 {[%clk 0:00:05.6]} 71... Rg4+
{[%clk 0:00:05.8]} 72. Kf3 {[%clk 0:00:06.1]} 72... Kg5 {[%clk 0:00:06.7]} 73.
Rh8 {[%clk 0:00:06.2]} 73... Rf4+ {[%clk 0:00:06.8]} 74. Kg3 {[%clk 0:00:05.9]}
74... Rg4+ {[%clk 0:00:07.1]} 75. Kf3 {[%clk 0:00:05.7]} 75... Rh4 {[%clk
0:00:07.3]} 76. Rg8 {[%clk 0:00:05]} 76... Rh3+ {[%clk 0:00:07.6]} 77. Kg2
{[%clk 0:00:05.4]} 77... Rd3 {[%clk 0:00:07.5]} 78. Rb8 {[%clk 0:00:05.2]} 78...
f4 {[%clk 0:00:07.7]} 79. Rf8 {[%clk 0:00:04.2]} 79... Kg4 {[%clk 0:00:07.6]}
0-1